bitfinex-derivatives/quotes_SOLF0:USTF0_20250325
["timestamp","ask_amount","ask_price","bid_price","bid_amount"]
[1742894603900,108.21152964,140.68,140.58,30.01325407]
[1742894604186,108.21152964,140.68,140.59,25.26]
[1742894604187,7.1101,140.65,140.59,25.26]
[1742894604386,0.0484071,140.64,140.62,0.0517789]
[1742894604988,7.1586071,140.64,140.63,7.54747817]
[1742894605685,7.1586071,140.64,140.63,13.19796464]
[1742894606387,69.1586071,140.64,140.63,10.1114237]
[1742894606982,62.0484071,140.64,140.56,406.8967032]
[1742894607288,25.28,140.63,140.56,25.28]
[1742894607492,25.28,140.63,140.55,0.03679026]
[1742894607692,7.1135,140.58,140.55,0.03679026]
[1742894608192,7.16492184,140.58,140.55,0.08200004]
[1742894608891,7.1138,140.57,140.55,0.08200004]
[1742894609396,7.16472184,140.58,140.55,7.19670004]
[1742894610195,0.05142184,140.58,140.55,7.19670004]
[1742894610691,0.05142184,140.58,140.55,0.08200004]
[1742894611088,7.1137,140.57,140.55,0.08200004]
[1742894611789,0.05142184,140.58,140.55,0.08200004]
[1742894612295,0.05142184,140.58,140.57,7.1137]
[1742894616097,0.05142184,140.58,140.56,25.28]
[1742894616098,0.05142184,140.58,140.56,32.394]
[1742894619100,0.05142184,140.58,140.57,7.1137]
[1742894619599,87.22,140.64,140.59,7.1123]
[1742894620000,7.1114,140.62,140.6,7.45783393]
[1742894620300,62.0,140.64,140.61,7.1117]
[1742894620497,62.0,140.64,140.61,14.56953393]
[1742894620693,62.04880732,140.64,140.61,7.50559704]
[1742894620996,62.04880732,140.64,140.62,14.56863393]
[1742894621397,62.04880732,140.64,140.63,7.45783393]
[1742894621998,62.04880732,140.64,140.63,14.56853393]
[1742894622195,0.04880732,140.64,140.63,14.56853393]
[1742894623905,0.04880732,140.64,140.63,7.45783393]
[1742894624496,0.04880732,140.64,140.63,14.56853393]
[1742894628201,69.1084,140.68,140.63,7.45783393]
[1742894628795,69.1084,140.68,140.64,7.45783393]
[1742894629199,0.05109777,140.67,140.65,0.04639407]
[1742894629392,0.05109777,140.67,140.66,7.1088]
[1742894630300,0.05109777,140.67,140.66,14.56663393]
[1742894632604,0.05109777,140.67,140.66,7.45783393]
[1742894635208,7.15969777,140.67,140.66,7.45783393]
[1742894637807,0.05109777,140.67,140.66,7.45783393]
[1742894638213,0.05109777,140.67,140.66,14.56693393]
[1742894644621,7.1068,140.71,140.66,7.45783393]
[1742894645021,7.1071,140.71,140.68,7.1078]
[1742894645621,7.1071,140.7,140.68,7.1078]
[1742894645816,7.1071,140.7,140.69,7.45783393]
[1742894647419,7.12842671,140.71,140.69,14.56533393]
[1742894647723,69.12842671,140.71,140.69,14.56533393]
[1742894648020,69.12842671,140.71,140.7,7.45783393]
[1742894652121,0.02152671,140.71,140.7,14.56493393]
[1742894652920,27.1501,140.76,140.7,14.56493393]
[1742894653117,27.1501,140.76,140.7,7.45783393]
[1742894653318,7.1057,140.73,140.71,7.1063]
[1742894653724,7.1057,140.73,140.72,7.45783393]
[1742894655121,69.1057,140.73,140.72,7.45783393]
[1742894656423,7.1061,140.72,140.71,0.05338908]
[1742894657325,7.1061,140.72,140.71,7.49828356]
[1742894658027,7.1086,140.68,140.65,5.9633]
[1742894658220,7.1086,140.68,140.65,13.0726]
[1742894659125,7.16144938,140.68,140.65,13.121324]
[1742894659524,7.16144938,140.68,140.66,7.1091]
[1742894660031,0.05284938,140.68,140.65,6.012024]
[1742894660225,87.14,140.73,140.68,7.1072]
[1742894660624,7.1063,140.71,140.68,7.1072]
[1742894660829,7.1063,140.71,140.65,5.9633]
[1742894660830,7.1063,140.71,140.69,7.1066]
[1742894661430,7.1063,140.71,140.69,7.15653076]
[1742894662028,7.1056,140.72,140.7,7.1064]
[1742894664034,7.1059,140.71,140.69,7.15663076]
[1742894664531,62.0,140.73,140.69,0.04993076]
[1742894665122,7.1056,140.72,140.7,7.1062]
[1742894666630,69.105,140.73,140.71,7.1059]
[1742894666830,62.0,140.73,140.69,0.04993076]
[1742894667430,69.1053,140.73,140.7,7.1061]
[1742894667930,7.1055,140.72,140.7,7.1061]
[1742894668832,69.1051,140.73,140.71,7.1059]
[1742894669037,25.08,140.78,140.7,25.1]
[1742894669337,7.1033,140.77,140.74,7.1042]
[1742894669532,25.08,140.78,140.75,5.56936922]
[1742894669736,25.08,140.78,140.76,5.56936922]
[1742894669936,25.08,140.78,140.77,5.56936922]
[1742894670738,32.1824,140.78,140.77,5.56936922]
[1742894672137,94.1824,140.78,140.77,5.56936922]
[1742894673643,69.1024,140.78,140.77,5.56936922]
[1742894675941,62.0,140.78,140.76,0.04555174]
[1742894676141,7.1029,140.77,140.76,0.04555174]
[1742894676443,7.1029,140.77,140.76,5.60254785]
[1742894681053,25.04,140.77,140.7,38.1108]
[1742894681648,7.1053,140.73,140.7,13.0108]
[1742894682152,7.15139144,140.73,140.7,13.06503906]
[1742894682453,7.15139144,140.73,140.71,7.1059]
[1742894685250,0.04609144,140.73,140.72,7.1054]
[1742894690059,7.15099144,140.73,140.72,7.1054]
[1742894690261,0.04609144,140.73,140.72,7.1054]
[1742894691759,7.15099144,140.73,140.7,5.95883906]
[1742894691961,7.15099144,140.73,140.71,7.1057]
[1742894693657,7.1054,140.72,140.7,13.06513906]
[1742894694258,7.1054,140.72,140.7,11.11583906]
[1742894694960,7.1059,140.71,140.7,0.05423906]
[1742894697768,0.04609144,140.73,140.7,25.21423906]
[1742894698362,0.04609144,140.73,140.72,7.1054]
[1742894698858,0.04609144,140.73,140.7,32.32033906]
[1742894699864,0.04609144,140.73,140.7,25.21423906]
[1742894700454,0.04609144,140.73,140.7,0.05423906]
[1742894701353,7.15129144,140.73,140.7,0.05423906]
[1742894701663,62.0,140.72,140.7,0.05423906]
[1742894705263,69.1054,140.72,140.7,0.05423906]
[1742894706467,7.1059,140.71,140.7,0.05423906]
[1742894706665,25.3,140.71,140.63,31.297]
[1742894707067,7.107,140.69,140.65,7.1087]
[1742894707366,25.3,140.71,140.61,125.74549915]
[1742894707559,25.3,140.71,140.61,103.64849634]
[1742894707757,0.05013599,140.67,140.65,0.05317828]
[1742894709668,62.0,140.66,140.65,0.05317828]
[1742894711272,69.1084,140.66,140.65,0.05317828]
[1742894712169,7.1097,140.64,140.6,5.7671]
[1742894712366,25.28,140.65,140.57,25.28]
[1742894712763,7.11,140.63,140.59,7.1118]
[1742894713163,25.28,140.65,140.56,45.11683304]
[1742894713371,7.15577721,140.62,140.6,0.04786826]
[1742894714465,7.111,140.61,140.6,0.04786826]
[1742894715572,69.111,140.61,140.6,0.04786826]
[1742894716076,62.0,140.61,140.6,0.04786826]
[1742894717974,69.111,140.61,140.6,0.04786826]
[1742894725589,62.0,140.61,140.56,3.8444]
[1742894725982,7.1128,140.58,140.56,3.8444]
[1742894726385,25.22,140.62,140.56,3.8444]
[1742894726585,0.05040434,140.6,140.58,0.05268707]
[1742894727183,7.112,140.59,140.58,0.05268707]
[1742894729188,69.112,140.59,140.58,0.05268707]
[1742894735498,62.0,140.59,140.58,0.05268707]
[1742894735998,62.0,140.59,140.58,7.16518707]
[1742894739398,0.05040434,140.6,140.59,7.112]
[1742894742402,62.05040434,140.6,140.59,7.112]
[1742894751012,62.05040434,140.6,140.58,12.90168707]
[1742894752713,62.05040434,140.6,140.59,7.112]
[1742894756321,28.9931,140.68,140.61,7.1105]
[1742894756520,29.0131,140.68,140.61,7.1105]
[1742894756918,7.1102,140.63,140.61,7.1105]
[1742894757319,29.0131,140.68,140.6,32.1912]
[1742894757518,0.04917435,140.63,140.61,0.0541349]
[1742894757819,0.04854119,140.63,140.61,0.0541349]
[1742894758218,7.1105,140.62,140.61,0.0541349]
[1742894759318,69.1105,140.62,140.61,0.0541349]
[1742894765825,62.0,140.62,140.61,0.0541349]
[1742894766523,62.0,140.62,140.61,7.1651349]
[1742894770520,14.2131,140.7,140.61,0.0541349]
[1742894770720,259.76,140.72,140.61,2.0437]
[1742894770921,7.1077,140.68,140.61,4.0487]
[1742894771222,7.1077,140.68,140.66,7.1084]
[1742894771715,7.16081879,140.68,140.66,7.15698533]
[1742894773027,7.16081879,140.68,140.66,0.04858533]
[1742894773728,69.1079,140.67,140.66,0.04858533]
[1742894780324,62.0,140.67,140.66,0.04858533]
[1742894781530,62.0,140.67,140.66,7.15698533]
[1742894782731,62.0,140.67,140.66,0.04858533]
[1742894783729,69.1079,140.67,140.66,0.04858533]
[1742894784436,62.0,140.67,140.66,0.04858533]
[1742894784637,62.0,140.67,140.66,7.15698533]
[1742894796145,0.05311879,140.68,140.67,7.1079]
[1742894796345,1.925,140.76,140.67,25.02]
[1742894796547,25.04,140.77,140.67,28.9953]
[1742894796847,7.1051,140.73,140.7,7.1061]
[1742894797048,7.1051,140.73,140.7,32.1461]
[1742894797449,7.15441272,140.73,140.7,32.1974941]
[1742894798049,7.15441272,140.73,140.7,25.0913941]
[1742894798851,7.15441272,140.73,140.7,32.1977941]
[1742894799049,7.15441272,140.73,140.7,25.0913941]
[1742894799246,62.0,140.72,140.7,25.0913941]
[1742894799751,69.1055,140.72,140.7,25.0913941]
[1742894800450,62.0,140.72,140.7,25.0913941]
[1742894801352,62.0,140.72,140.7,32.1977941]
[1742894803655,62.0,140.72,140.71,7.1059]
[1742894806653,0.04931272,140.73,140.72,7.1054]
[1742894808154,25.02,140.8,140.73,7.1048]
[1742894808354,25.02,140.8,140.73,32.1248]
[1742894808553,7.1038,140.76,140.73,32.1248]
[1742894809452,7.1038,140.76,140.73,32.17862585]
[1742894809660,62.0,140.75,140.73,32.17862585]
[1742894809961,69.104,140.75,140.73,25.07382585]
[1742894811359,69.104,140.75,140.73,32.17862585]
[1742894811562,62.0,140.75,140.73,32.17862585]
[1742894812558,62.0,140.75,140.73,0.05382585]
[1742894813957,69.1041,140.75,140.73,0.05382585]
[1742894814360,62.0,140.75,140.73,7.15862585]
[1742894815358,12.69645532,140.81,140.73,0.05382585]
[1742894815359,3.8145,140.81,140.73,0.05382585]
[1742894815556,25.02,140.8,140.73,25.07382585]
[1742894815964,7.1027,140.78,140.75,7.1036]
[1742894816156,25.02,140.8,140.75,7.1036]
[1742894816357,7.1029,140.77,140.75,0.04959405]
[1742894818462,69.1034,140.76,140.75,0.04959405]
[1742894824058,62.0,140.76,140.75,0.04959405]
[1742894824268,25.3144,140.85,140.77,7.1024]
[1742894824467,25.3144,140.85,140.76,25.0]
[1742894824667,7.1014,140.81,140.8,0.04666661]
[1742894825366,62.0,140.81,140.8,0.04666661]
[1742894825668,62.0,140.81,140.8,7.14806661]
[1742894826172,234.42,140.91,140.8,0.04666661]
[1742894826463,25.0,140.9,140.83,7.0995]
[1742894826668,25.0,140.9,140.84,0.04642533]
[1742894827270,7.0988,140.85,140.84,0.04642533]
[1742894827668,25.0,140.9,140.84,0.04642533]
[1742894828165,7.0986,140.86,140.84,0.04642533]
[1742894828365,25.0,140.9,140.84,0.04642533]
[1742894828570,7.0988,140.85,140.84,0.04642533]
[1742894828869,25.0,140.9,140.84,0.04642533]
[1742894829072,7.0986,140.86,140.84,0.04642533]
[1742894830169,7.0981,140.87,140.84,0.04642533]
[1742894830370,25.06,140.92,140.84,0.04642533]
[1742894830669,7.0971,140.89,140.85,25.06]
[1742894830869,25.06,140.92,140.87,0.04737489]
[1742894831368,7.0973,140.88,140.87,0.04737489]
[1742894831569,25.06,140.92,140.87,0.04737489]
[1742894832265,7.0972,140.89,140.87,0.04737489]
[1742894832464,62.0,140.88,140.87,0.04737489]
[1742894832669,69.0973,140.88,140.87,0.04737489]
[1742894832865,62.0,140.88,140.87,0.04737489]
[1742894833073,25.06,140.94,140.87,0.04737489]
[1742894833270,7.0963,140.9,140.87,0.04737489]
[1742894833875,25.06,140.94,140.87,0.04737489]
[1742894834068,62.0,140.93,140.87,0.04737489]
[1742894834967,7.0967,140.9,140.87,0.04737489]
[1742894835377,7.0962,140.91,140.87,0.04737489]
[1742894835575,62.0,140.93,140.87,0.04737489]
[1742894836176,7.0963,140.91,140.87,0.04737489]
[1742894836581,7.0955,140.92,140.87,7.14517489]
[1742894837384,69.095,140.93,140.88,7.0973]
[1742894837576,69.095,140.93,140.88,32.1573]
[1742894838170,69.095,140.93,140.89,7.0968]
[1742894838578,62.0,140.93,140.88,32.1571]
[1742894839182,62.0,140.93,140.89,7.0968]
[1742894839884,62.0,140.93,140.88,25.06]
[1742894840278,62.0,140.93,140.88,32.1572]
[1742894840679,69.0951,140.93,140.88,32.1572]
[1742894841886,26.9353,140.96,140.88,25.06]
[1742894842384,26.9353,140.96,140.91,0.0501725]
[1742894842587,7.0953,140.92,140.91,0.0501725]
[1742894844887,69.0953,140.92,140.91,0.0501725]
[1742894849789,62.0,140.92,140.91,0.0501725]
[1742894850491,69.0953,140.92,140.91,0.0501725]
[1742894859997,62.0,140.92,140.91,0.0501725]
[1742894860296,24.98,140.98,140.91,0.0501725]
[1742894860497,5.7778,140.99,140.91,0.0501725]
[1742894860697,24.98,140.98,140.91,0.0501725]
[1742894861001,7.0947,140.94,140.91,0.0501725]
[1742894861201,24.98,140.98,140.91,0.0501725]
[1742894861400,33.54645532,140.98,140.91,0.0501725]
[1742894861600,7.0953,140.92,140.91,0.0501725]
[1742894863199,69.0953,140.92,140.91,0.0501725]
[1742894863705,7.0976,140.88,140.86,24.98]
[1742894864201,7.0971,140.89,140.86,32.0783]
[1742894864803,7.1472725,140.89,140.86,0.04621902]
[1742894865003,0.0501725,140.89,140.86,0.04621902]
[1742894865395,0.0501725,140.89,140.88,7.0973]
[1742894866705,0.0501725,140.89,140.87,7.0976]
[1742894866907,0.0501725,140.89,140.86,0.04621902]
[1742894867200,0.0501725,140.89,140.87,7.0974]
[1742894867500,0.0501725,140.89,140.86,0.04621902]
[1742894867906,0.0501725,140.89,140.88,7.0973]
[1742894868101,0.0501725,140.89,140.88,32.0773]
[1742894868304,0.0501725,140.89,140.88,24.98]
[1742894869703,0.0501725,140.89,140.88,32.0773]
[1742894873113,0.0501725,140.89,140.88,24.98]
[1742894873413,0.0501725,140.89,140.87,7.0976]
[1742894873613,62.0501725,140.89,140.87,7.0976]
[1742894874315,62.0501725,140.89,140.86,0.04621902]
[1742894874811,0.0501725,140.89,140.86,0.04621902]
[1742894875015,0.0501725,140.89,140.88,7.0973]
[1742894875218,0.0501725,140.89,140.88,32.0773]
[1742894880321,0.0501725,140.89,140.88,48.36543004]
[1742894881915,7.25e-05,140.89,140.88,48.36543004]
[1742894884031,1.9213,140.97,140.94,7.0941]
[1742894884219,26.9379,140.99,140.94,7.0941]
[1742894884417,7.093,140.97,140.94,7.0941]
[1742894884818,7.0934,140.96,140.94,7.0941]
[1742894885229,7.0934,140.96,140.94,7.14386076]
[1742894885432,7.0933,140.96,140.94,0.04976076]
[1742894885928,1.9579,140.99,140.94,0.04976076]
[1742894886123,7.0938,140.95,140.94,0.04976076]
[1742894887024,69.0938,140.95,140.94,0.04976076]
[1742894887929,7.0954,140.92,140.88,32.0771]
[1742894888128,7.0954,140.92,140.88,34.80248326]
[1742894888530,24.98,140.96,140.88,34.80248326]
[1742894888832,24.98,140.96,140.88,41.89958326]
[1742894889036,7.0958,140.92,140.91,0.04653793]
[1742894891233,69.0958,140.92,140.91,0.04653793]
[1742894897438,62.0,140.92,140.85,43.17903004]
[1742894897837,62.0,140.92,140.85,18.19903004]
[1742894898536,0.04535162,140.9,140.87,0.05129917]
[1742894898934,7.0968,140.89,140.87,0.05129917]
[1742894899141,0.04535162,140.9,140.87,0.05129917]
[1742894899946,7.0971,140.89,140.87,0.05129917]
[1742894901642,62.0,140.88,140.87,0.05129917]
[1742894902242,7.0971,140.89,140.87,0.05129917]
[1742894902847,7.0973,140.88,140.87,0.05129917]
[1742894905354,69.0973,140.88,140.87,0.05129917]
[1742894907357,7.099,140.85,140.83,3.8409]
[1742894907555,62.0,140.88,140.82,2.0376]
[1742894907755,62.0,140.88,140.8,24.98]
[1742894908056,7.0982,140.87,140.84,7.099]
[1742894908459,0.05152937,140.87,140.84,7.14588871]
[1742894908658,0.05152937,140.87,140.84,0.04688871]
[1742894909649,7.0988,140.85,140.84,0.04688871]
[1742894910752,131.0988,140.85,140.84,0.04688871]
[1742894911358,124.0,140.85,140.8,7.1011]
[1742894912152,124.0,140.85,140.78,3.789]
[1742894912355,7.1006,140.82,140.8,0.05084836]
[1742894913159,62.0,140.81,140.8,0.05084836]
[1742894914159,69.1009,140.81,140.8,0.05084836]
[1742894915155,62.0,140.81,140.8,0.05084836]
[1742894916159,69.1009,140.81,140.8,0.05084836]
[1742894916660,62.0,140.81,140.8,0.05084836]
[1742894918954,62.0,140.81,140.8,7.15224836]
[1742894919856,25.0,140.87,140.8,0.05084836]
[1742894920053,124.0,140.87,140.79,24.98]
[1742894920363,7.0986,140.86,140.83,7.0998]
[1742894920759,62.0,140.84,140.83,7.0998]
[1742894920959,62.0,140.84,140.83,7.14764181]
[1742894921464,62.0,140.84,140.83,0.04784181]
[1742894921465,69.0994,140.84,140.83,0.04784181]
[1742894922959,62.0,140.84,140.83,0.04784181]
[1742894923658,69.0994,140.84,140.83,0.04784181]
[1742894924959,7.1009,140.81,140.8,3.8195]
[1742894925154,25.0,140.85,140.75,1.9841]
[1742894925361,33.56645532,140.85,140.77,7.1026]
[1742894925562,7.1013,140.81,140.77,7.1026]
[1742894925859,7.1013,140.81,140.78,7.1023]
[1742894926055,0.04497112,140.8,140.78,7.15151922]
[1742894926558,7.14637112,140.8,140.78,7.15151922]
[1742894927165,0.04497112,140.8,140.78,7.15151922]
[1742894927565,7.14637112,140.8,140.78,7.15151922]
[1742894927961,7.14637112,140.8,140.78,0.04921922]
[1742894928159,62.0,140.79,140.78,0.04921922]
[1742894928362,69.1019,140.79,140.78,0.04921922]
[1742894928660,62.0,140.79,140.72,9.82248326]
[1742894928860,25.0,140.79,140.72,9.82248326]
[1742894929669,7.15515715,140.77,140.74,0.04695512]
[1742894930264,7.1035,140.76,140.74,0.04695512]
[1742894930564,0.05205715,140.77,140.74,0.04695512]
[1742894931466,7.15495715,140.77,140.74,0.04695512]
[1742894931765,62.0,140.75,140.74,0.04695512]
[1742894934661,62.0,140.75,140.74,7.15135512]
[1742894934866,62.0,140.75,140.74,0.04695512]
[1742894935871,69.1039,140.75,140.74,0.04695512]
[1742894936072,62.0,140.75,140.7,25.0]
[1742894936370,7.1046,140.74,140.7,32.1064]
[1742894936769,7.1046,140.74,140.7,7.1064]
[1742894937269,0.05191852,140.73,140.71,0.04519938]
[1742894938769,7.15691852,140.73,140.71,0.04519938]
[1742894939673,62.0,140.72,140.71,0.04519938]
[1742894940775,69.1054,140.72,140.71,0.04519938]
[1742894940975,62.0,140.72,140.71,0.04519938]
[1742894944977,69.1054,140.72,140.71,0.04519938]
[1742894946380,62.0,140.72,140.71,0.04519938]
[1742894946978,69.1054,140.72,140.71,0.04519938]
[1742894947582,62.0,140.72,140.71,0.04519938]
[1742894950489,62.0,140.72,140.71,7.15109938]
[1742894950788,62.0,140.72,140.71,0.04519938]
[1742894951787,62.0,140.72,140.71,7.15109938]
[1742894952688,62.0,140.72,140.71,0.04519938]
[1742894953387,62.0,140.72,140.71,7.15109938]
[1742894960088,0.05191852,140.73,140.72,7.1054]
[1742894961887,0.05191852,140.73,140.71,7.15079938]
[1742894963294,62.0,140.72,140.71,7.15079938]
[1742894971996,62.0,140.72,140.71,0.04519938]
[1742894985913,62.0,140.72,140.71,7.15109938]
[1742894990222,0.05191852,140.73,140.72,7.1054]
[1742894991315,62.05191852,140.73,140.72,7.1054]
[1742895001742,62.05191852,140.73,140.71,32.15079938]
[1742895002034,62.05191852,140.73,140.71,25.04519938]
[1742895002641,62.05191852,140.73,140.72,7.1054]
[1742895003030,62.05191852,140.73,140.71,25.04519938]
[1742895003441,62.05191852,140.73,140.71,32.15079938]
[1742895004235,62.05191852,140.73,140.71,25.04519938]
[1742895005033,62.05191852,140.73,140.71,0.04519938]
[1742895005635,69.15721852,140.73,140.71,0.04519938]
[1742895006542,62.05191852,140.73,140.71,0.04519938]
[1742895007140,7.1054,140.72,140.71,0.04519938]
[1742895013934,7.1077,140.68,140.63,28.9666]
[1742895014939,7.1077,140.68,140.63,3.9666]
[1742895015140,0.04515526,140.67,140.64,0.04482763]
[1742895015743,7.1087,140.66,140.64,0.04482763]
[1742895015944,0.04515526,140.67,140.64,0.04482763]
[1742895017547,7.1085,140.66,140.64,0.04482763]
[1742895018043,0.04515526,140.67,140.64,0.04482763]
[1742895018745,7.1089,140.65,140.64,0.04482763]
[1742895019848,69.1089,140.65,140.64,0.04482763]
[1742895020043,62.0,140.65,140.64,0.04482763]
[1742895021849,62.0,140.65,140.64,7.15422763]
[1742895023750,0.04515526,140.67,140.65,7.1089]
[1742895024749,0.04515526,140.67,140.66,7.1084]
[1742895049162,5.526e-05,140.67,140.66,7.1084]
[1742895049367,62.0,140.72,140.71,7.1059]
[1742895050864,0.04623305,140.73,140.72,7.1054]
[1742895051056,25.0,140.77,140.71,25.0]
[1742895051057,29.57297932,140.83,140.71,25.0]
[1742895051257,25.0,140.82,140.72,3.9696]
[1742895051661,7.1011,140.81,140.72,3.9696]
[1742895051866,7.1011,140.81,140.77,7.1026]
[1742895052365,0.04935692,140.8,140.78,0.05182783]
[1742895053662,62.0,140.79,140.78,0.05182783]
[1742895055372,69.1019,140.79,140.78,0.05182783]
[1742895056473,94.1,140.79,140.71,7.1058]
[1742895056668,92.8592,140.79,140.71,7.1058]
[1742895056872,92.8592,140.79,140.7,26.9577]
[1742895057071,7.1042,140.75,140.7,26.9577]
[1742895057472,30.8592,140.79,140.7,26.9577]
[1742895057674,0.05060302,140.74,140.71,0.04881343]
[1742895058170,7.15510302,140.74,140.71,7.15431343]
[1742895058375,0.05060302,140.74,140.71,0.04881343]
[1742895058770,7.105,140.73,140.71,0.04881343]
[1742895058973,0.05060302,140.74,140.71,0.04881343]
[1742895059274,0.05060302,140.74,140.72,7.1051]
[1742895059771,0.05060302,140.74,140.73,7.1049]
[1742895060164,62.05060302,140.74,140.73,7.1049]
[1742895061976,62.05060302,140.74,140.72,7.1052]
[1742895062169,62.05060302,140.74,140.71,0.04881343]
[1742895062775,7.1054,140.72,140.71,0.04881343]
[1742895063976,32.1054,140.72,140.71,0.04881343]
[1742895064169,7.1073,140.69,140.66,8.9923]
[1742895064374,25.0,140.72,140.65,64.28993304]
[1742895064680,25.0,140.72,140.65,39.28993304]
[1742895064978,7.1084,140.66,140.65,39.28993304]
[1742895066175,0.05130468,140.67,140.65,39.28993304]
[1742895066986,0.05130468,140.67,140.66,7.1084]
[1742895069184,0.05130468,140.67,140.65,7.1087]
[1742895069384,62.05130468,140.67,140.64,0.05106624]
[1742895069578,0.05130468,140.67,140.64,25.05106624]
[1742895069776,26.9257,140.74,140.65,1.856]
[1742895070084,25.0,140.74,140.65,1.856]
[1742895070283,28.9023,140.77,140.66,12.40375532]
[1742895070482,3.9023,140.77,140.67,25.0]
[1742895070784,108.43425752,140.83,140.73,8.56645532]
[1742895070981,108.43425752,140.83,140.78,7.1022]
[1742895071182,0.0483459,140.79,140.77,0.05316305]
[1742895071380,108.43425752,140.83,140.77,25.45316305]
[1742895071781,143.46305008,140.85,140.77,25.45316305]
[1742895071976,7.0999,140.83,140.78,7.1024]
[1742895072180,202.13609557,140.86,140.77,25.4]
[1742895072590,0.04606921,140.83,140.8,0.04924663]
[1742895072783,0.04606921,140.83,140.8,25.52924663]
[1742895074486,0.04606921,140.83,140.8,0.04924663]
[1742895074681,7.1004,140.82,140.8,0.04924663]
[1742895075583,7.1009,140.81,140.8,0.04924663]
[1742895075979,25.48,140.82,140.74,29.1893]
[1742895076181,7.1015,140.8,140.74,29.1893]
[1742895076386,7.1015,140.8,140.7,278.33771763]
[1742895076586,7.1015,140.8,140.7,265.7949]
[1742895076788,7.1015,140.8,140.72,7.1052]
[1742895076986,0.05392317,140.77,140.75,0.05059507]
[1742895079088,0.05392317,140.77,140.76,25.5]
[1742895081382,0.05392317,140.77,140.75,0.05059507]
[1742895081577,7.15682317,140.77,140.75,0.05059507]
[1742895081985,0.05392317,140.77,140.75,0.05059507]
[1742895083186,7.15682317,140.77,140.75,0.05059507]
[1742895084589,62.0,140.76,140.75,0.05059507]
[1742895085992,0.05392317,140.77,140.75,0.05059507]
[1742895088996,62.0,140.76,140.75,0.05059507]
[1742895089497,69.1034,140.76,140.75,0.05059507]
[1742895089889,62.0,140.76,140.75,0.05059507]
[1742895091296,69.1034,140.76,140.75,0.05059507]
[1742895094204,62.0,140.76,140.75,0.05059507]
[1742895096506,69.1034,140.76,140.75,0.05059507]
[1742895097100,7.1047,140.74,140.7,31.2549]
[1742895097400,7.1047,140.74,140.7,38.3611]
[1742895097602,7.1046,140.74,140.7,38.3611]
[1742895098000,7.1046,140.74,140.7,12.9011]
[1742895098202,0.05032472,140.73,140.71,7.15349156]
[1742895098401,27.5373,140.79,140.71,7.15349156]
[1742895098596,0.04535951,140.73,140.72,7.105]
[1742895098797,7.1032,140.77,140.7,5.7949]
[1742895098996,0.05161446,140.74,140.71,0.0468799]
[1742895099397,0.05161446,140.74,140.73,7.1048]
[1742895099604,0.05161446,140.74,140.71,0.0468799]
[1742895100304,62.0,140.73,140.71,0.0468799]
[1742895100702,62.0,140.73,140.72,7.1054]
[1742895106705,62.0,140.73,140.71,7.1526799]
[1742895106904,62.0,140.73,140.71,0.0468799]
[1742895107503,62.0,140.73,140.71,7.1527799]
[1742895108507,62.0,140.73,140.71,0.0468799]
[1742895110307,7.1054,140.72,140.71,0.0468799]
[1742895110708,0.05161446,140.74,140.71,0.0468799]
[1742895110909,7.1052,140.73,140.71,0.0468799]
[1742895111405,7.1049,140.73,140.71,0.0468799]
[1742895111799,0.05161446,140.74,140.71,0.0468799]
[1742895112000,7.1049,140.73,140.71,0.0468799]
[1742895112706,7.15601446,140.74,140.72,7.1052]
[1742895112911,0.05161446,140.74,140.71,0.0468799]
[1742895113310,7.1051,140.73,140.71,7.1525799]
[1742895113511,62.0,140.72,140.71,7.1525799]
[1742895116212,62.0,140.72,140.71,0.0468799]
[1742895119316,69.1054,140.72,140.71,0.0468799]
[1742895120218,62.0,140.72,140.71,0.0468799]
[1742895120813,69.1054,140.72,140.71,0.0468799]
[1742895121017,62.0,140.72,140.64,282.41881565]
[1742895121212,62.0,140.72,140.65,25.38]
[1742895121412,7.1061,140.71,140.68,7.1074]
[1742895121813,62.0,140.72,140.64,31.7488322]
[1742895122017,62.0,140.72,140.66,7.1082]